{"text_format":"1","workbook":"xlsx","n_sheets":20,"sheets":["Оглавление","Лист2","Лист3","Лист4","Лист5","Лист6","Лист7","Лист8","Лист9","Лист10","Лист11","Лист12","Лист13","Лист14","Лист15","Лист16","Лист17","Лист18","Лист19","Лист20"],"not_rendered":{"charts":0,"images":0,"macros":0,"external_links":0,"defined_names":1,"comments":0,"pivot_tables":0},"unopened":[],"bounds":{"document_bytes":16777216,"sheet_cells":100000,"rows_first":2000,"rows_last":500,"rows_between":2000,"halvings":0,"cell_chars":16384,"cell_head_chars":4096},"cells_cut":0,"cells_raw":0,"read":"whole","date_system":"1900"}

{"sheet":"Оглавление","index":0,"n_rows":28,"n_cols":1,"rows_kept":28,"cut":false,"hidden":false,"merged":[]}
[]
[]
[{"$f":"IFERROR(HYPERLINK(\"#\"&INDEX(оглавление,ROW(A2))&\"!A1\",INDEX(оглавление,ROW(A2))&\" >>>\"),\"\")","v":"Лист2 >>>"}]
[{"$f":"IFERROR(HYPERLINK(\"#\"&INDEX(оглавление,ROW(A3))&\"!A1\",INDEX(оглавление,ROW(A3))&\" >>>\"),\"\")","v":"Лист3 >>>"}]
[{"$f":"IFERROR(HYPERLINK(\"#\"&INDEX(оглавление,ROW(A4))&\"!A1\",INDEX(оглавление,ROW(A4))&\" >>>\"),\"\")","v":"Лист4 >>>"}]
[{"$f":"IFERROR(HYPERLINK(\"#\"&INDEX(оглавление,ROW(A5))&\"!A1\",INDEX(оглавление,ROW(A5))&\" >>>\"),\"\")","v":"Лист5 >>>"}]
[{"$f":"IFERROR(HYPERLINK(\"#\"&INDEX(оглавление,ROW(A6))&\"!A1\",INDEX(оглавление,ROW(A6))&\" >>>\"),\"\")","v":"Лист6 >>>"}]
[{"$f":"IFERROR(HYPERLINK(\"#\"&INDEX(оглавление,ROW(A7))&\"!A1\",INDEX(оглавление,ROW(A7))&\" >>>\"),\"\")","v":"Лист7 >>>"}]
[{"$f":"IFERROR(HYPERLINK(\"#\"&INDEX(оглавление,ROW(A8))&\"!A1\",INDEX(оглавление,ROW(A8))&\" >>>\"),\"\")","v":"Лист8 >>>"}]
[{"$f":"IFERROR(HYPERLINK(\"#\"&INDEX(оглавление,ROW(A9))&\"!A1\",INDEX(оглавление,ROW(A9))&\" >>>\"),\"\")","v":"Лист9 >>>"}]
[{"$f":"IFERROR(HYPERLINK(\"#\"&INDEX(оглавление,ROW(A10))&\"!A1\",INDEX(оглавление,ROW(A10))&\" >>>\"),\"\")","v":"Лист10 >>>"}]
[{"$f":"IFERROR(HYPERLINK(\"#\"&INDEX(оглавление,ROW(A11))&\"!A1\",INDEX(оглавление,ROW(A11))&\" >>>\"),\"\")","v":"Лист11 >>>"}]
[{"$f":"IFERROR(HYPERLINK(\"#\"&INDEX(оглавление,ROW(A12))&\"!A1\",INDEX(оглавление,ROW(A12))&\" >>>\"),\"\")","v":"Лист12 >>>"}]
[{"$f":"IFERROR(HYPERLINK(\"#\"&INDEX(оглавление,ROW(A13))&\"!A1\",INDEX(оглавление,ROW(A13))&\" >>>\"),\"\")","v":"Лист13 >>>"}]
[{"$f":"IFERROR(HYPERLINK(\"#\"&INDEX(оглавление,ROW(A14))&\"!A1\",INDEX(оглавление,ROW(A14))&\" >>>\"),\"\")","v":"Лист14 >>>"}]
[{"$f":"IFERROR(HYPERLINK(\"#\"&INDEX(оглавление,ROW(A15))&\"!A1\",INDEX(оглавление,ROW(A15))&\" >>>\"),\"\")","v":"Лист15 >>>"}]
[{"$f":"IFERROR(HYPERLINK(\"#\"&INDEX(оглавление,ROW(A16))&\"!A1\",INDEX(оглавление,ROW(A16))&\" >>>\"),\"\")","v":"Лист16 >>>"}]
[{"$f":"IFERROR(HYPERLINK(\"#\"&INDEX(оглавление,ROW(A17))&\"!A1\",INDEX(оглавление,ROW(A17))&\" >>>\"),\"\")","v":"Лист17 >>>"}]
[{"$f":"IFERROR(HYPERLINK(\"#\"&INDEX(оглавление,ROW(A18))&\"!A1\",INDEX(оглавление,ROW(A18))&\" >>>\"),\"\")","v":"Лист18 >>>"}]
[{"$f":"IFERROR(HYPERLINK(\"#\"&INDEX(оглавление,ROW(A19))&\"!A1\",INDEX(оглавление,ROW(A19))&\" >>>\"),\"\")","v":"Лист19 >>>"}]
[{"$f":"IFERROR(HYPERLINK(\"#\"&INDEX(оглавление,ROW(A20))&\"!A1\",INDEX(оглавление,ROW(A20))&\" >>>\"),\"\")","v":"Лист20 >>>"}]
[{"$f":"IFERROR(HYPERLINK(\"#\"&INDEX(оглавление,ROW(A21))&\"!A1\",INDEX(оглавление,ROW(A21))&\" >>>\"),\"\")","v":""}]
[{"$f":"IFERROR(HYPERLINK(\"#\"&INDEX(оглавление,ROW(A22))&\"!A1\",INDEX(оглавление,ROW(A22))&\" >>>\"),\"\")","v":""}]
[{"$f":"IFERROR(HYPERLINK(\"#\"&INDEX(оглавление,ROW(A23))&\"!A1\",INDEX(оглавление,ROW(A23))&\" >>>\"),\"\")","v":""}]
[{"$f":"IFERROR(HYPERLINK(\"#\"&INDEX(оглавление,ROW(A24))&\"!A1\",INDEX(оглавление,ROW(A24))&\" >>>\"),\"\")","v":""}]
[{"$f":"IFERROR(HYPERLINK(\"#\"&INDEX(оглавление,ROW(A25))&\"!A1\",INDEX(оглавление,ROW(A25))&\" >>>\"),\"\")","v":""}]
[{"$f":"IFERROR(HYPERLINK(\"#\"&INDEX(оглавление,ROW(A26))&\"!A1\",INDEX(оглавление,ROW(A26))&\" >>>\"),\"\")","v":""}]
[{"$f":"IFERROR(HYPERLINK(\"#\"&INDEX(оглавление,ROW(A27))&\"!A1\",INDEX(оглавление,ROW(A27))&\" >>>\"),\"\")","v":""}]

{"sheet":"Лист2","index":1,"n_rows":0,"n_cols":0,"rows_kept":0,"cut":false,"hidden":false,"merged":[]}

{"sheet":"Лист3","index":2,"n_rows":0,"n_cols":0,"rows_kept":0,"cut":false,"hidden":false,"merged":[]}

{"sheet":"Лист4","index":3,"n_rows":0,"n_cols":0,"rows_kept":0,"cut":false,"hidden":false,"merged":[]}

{"sheet":"Лист5","index":4,"n_rows":0,"n_cols":0,"rows_kept":0,"cut":false,"hidden":false,"merged":[]}

{"sheet":"Лист6","index":5,"n_rows":0,"n_cols":0,"rows_kept":0,"cut":false,"hidden":false,"merged":[]}

{"sheet":"Лист7","index":6,"n_rows":0,"n_cols":0,"rows_kept":0,"cut":false,"hidden":false,"merged":[]}

{"sheet":"Лист8","index":7,"n_rows":0,"n_cols":0,"rows_kept":0,"cut":false,"hidden":false,"merged":[]}

{"sheet":"Лист9","index":8,"n_rows":0,"n_cols":0,"rows_kept":0,"cut":false,"hidden":false,"merged":[]}

{"sheet":"Лист10","index":9,"n_rows":0,"n_cols":0,"rows_kept":0,"cut":false,"hidden":false,"merged":[]}

{"sheet":"Лист11","index":10,"n_rows":0,"n_cols":0,"rows_kept":0,"cut":false,"hidden":false,"merged":[]}

{"sheet":"Лист12","index":11,"n_rows":0,"n_cols":0,"rows_kept":0,"cut":false,"hidden":false,"merged":[]}

{"sheet":"Лист13","index":12,"n_rows":0,"n_cols":0,"rows_kept":0,"cut":false,"hidden":false,"merged":[]}

{"sheet":"Лист14","index":13,"n_rows":0,"n_cols":0,"rows_kept":0,"cut":false,"hidden":false,"merged":[]}

{"sheet":"Лист15","index":14,"n_rows":0,"n_cols":0,"rows_kept":0,"cut":false,"hidden":false,"merged":[]}

{"sheet":"Лист16","index":15,"n_rows":0,"n_cols":0,"rows_kept":0,"cut":false,"hidden":false,"merged":[]}

{"sheet":"Лист17","index":16,"n_rows":0,"n_cols":0,"rows_kept":0,"cut":false,"hidden":false,"merged":[]}

{"sheet":"Лист18","index":17,"n_rows":0,"n_cols":0,"rows_kept":0,"cut":false,"hidden":false,"merged":[]}

{"sheet":"Лист19","index":18,"n_rows":0,"n_cols":0,"rows_kept":0,"cut":false,"hidden":false,"merged":[]}

{"sheet":"Лист20","index":19,"n_rows":0,"n_cols":0,"rows_kept":0,"cut":false,"hidden":false,"merged":[]}